fUST/lending_fUST_20260131
["ID","MTS","AMOUNT","RATE_DAILY","PERIOD"]
[404100025,1769838639602,-2473.17541431,0.00016012,2]
[404100026,1769838639611,-2719.810802,0.00016243,2]
[404100027,1769838639620,-5830.42071984,0.00016355,2]
[404100028,1769838639629,-235.24789409,0.00016438,2]
[404100029,1769838639638,-151.0,0.00016438,2]
[404100030,1769838639647,-151.0,0.00016438,2]
[404100031,1769838639657,-217.443105,0.00016438,2]
[404100033,1769838639667,-150.42150351,0.00016438,2]
[404100035,1769838639675,-151.0,0.00016438,2]
[404100037,1769838639685,-151.0,0.00016438,2]
[404100039,1769838639694,-151.0,0.00016438,2]
[404100041,1769838639703,-151.0,0.00016438,2]
[404100043,1769838639713,-151.0,0.00016438,2]
[404100045,1769838639722,-151.0,0.00016438,2]
[404100047,1769838639731,-151.0,0.00016438,2]
[404100049,1769838639741,-151.0,0.00016438,2]
[404100052,1769838639751,-151.0,0.00016438,2]
[404100054,1769838639760,-151.0,0.00016438,2]
[404100056,1769838639769,-151.0,0.00016438,2]
[404100058,1769838639778,-151.0,0.00016438,2]
[404100060,1769838639787,-231.341024,0.00016438,2]
[404100062,1769838639797,-151.0,0.00016438,2]
[404100064,1769838639806,-151.0,0.00016438,2]
[404100066,1769838639818,-151.0,0.00016438,2]
[404100068,1769838639828,-151.0,0.00016438,2]
[404100070,1769838639838,-151.0,0.00016438,2]
[404100072,1769838639847,-151.0,0.00016438,2]
[404100074,1769838639857,-151.0,0.00016438,2]
[404100076,1769838639866,-204.441082,0.00016438,2]
[404100078,1769838639875,-164.64279202,0.00016438,2]
[404100080,1769838639886,-3000.0,0.00016438,2]
[404100082,1769838639902,-200.0,0.00016473,2]
[404100083,1769838639917,-2719.810802,0.00016829,2]
[404100086,1769838639927,-204.0,0.0001691,2]
[404100088,1769838639937,-3500.0,0.00016986,2]
[404100090,1769838639948,-726.0,0.0001749,2]
[404100092,1769838639957,-2634.21199052,0.00017534,2]
[404100094,1769838639968,-864.0,0.00017582,2]
[404100096,1769838639979,-482.66498673,0.00017842,2]
[404100098,1769838639988,-197.102064,0.00018503,2]
[404100100,1769838639997,-5000.0,0.00018768,2]
[404100102,1769838640007,-1041.66666667,0.00018803,2]
[404100104,1769838640016,-160.0,0.00018803,2]
[404100105,1769838640027,-160.0,0.00018809,2]
[404100108,1769838640037,-5830.42071984,0.00018837,2]
[404100110,1769838640048,-303.10001603,0.000189,2]
[404100112,1769838640057,-231.0,0.0001891,2]
[404100114,1769838640067,-303.10001606,0.00019089,2]
[404100116,1769838640076,-151.0,0.00019178,2]
[404100118,1769838640085,-151.0,0.00019178,2]
[404100120,1769838640095,-151.0,0.00019178,2]
[404100121,1769838640106,-151.0,0.00019178,2]
[404100124,1769838640115,-151.0,0.00019178,2]
[404100136,1769838640124,-151.0,0.00019178,2]
[404100138,1769838640250,-151.0,0.00019178,2]
[404100140,1769838640260,-151.0,0.00019178,2]
[404100142,1769838640269,-151.0,0.00019178,2]
[404100144,1769838640278,-1000.0,0.0001934,2]
[404100146,1769838640287,-676.45,0.000196,2]
[404100148,1769838640297,-163.518372,0.00019635,2]
[404100150,1769838640306,-5000.0,0.00020332,2]
[404100152,1769838640316,-1790.03414103,0.00020577,7]
[404100154,1769838640325,-258.0,0.0002091,2]
[404100156,1769838640335,-788.40825601,0.00021072,2]
[404100158,1769838640344,-1000.0,0.00021274,10]
[404100160,1769838640354,-244.0,0.00021274,10]
[404100162,1769838640363,-5830.42071984,0.00021318,2]
[404100164,1769838640374,-705.48297804,0.0002166,7]
[404100166,1769838640384,-770.1,0.00021917,2]
[404100168,1769838640394,-150.21240236,0.00021918,2]
[404100170,1769838640404,-2000.0,0.0002192,7]
[404100172,1769838640413,-501.02660642,0.00021981,2]
[404100174,1769838640423,-529.65,0.00021999,2]
[404100176,1769838640432,-500.0,0.00021999,2]
[404100178,1769838640442,-500.0,0.00021999,2]
[404100180,1769838640452,-500.0,0.00021999,2]
[404100182,1769838640461,-153.83,0.00022,7]
[404100184,1769838640470,-285.0,0.0002291,2]
[404100186,1769838640478,-1627.480064,0.00023,2]
[404100188,1769838640487,-167.204,0.00023253,3]
[404100190,1769838640496,-179.64417157,0.00023253,3]
[404100192,1769838640505,-160.33437236,0.00023287,2]
[404100194,1769838640514,-151.0,0.00023288,2]
[404100196,1769838640524,-151.0,0.00023288,2]
[404100198,1769838640533,-151.0,0.00023288,2]
[404100200,1769838640542,-279.359932,0.00023288,2]
[404100202,1769838640551,-151.0,0.00023288,2]
[404100204,1769838640561,-151.0,0.00023288,2]
[404100206,1769838640570,-151.0,0.00023288,2]
[404100208,1769838640579,-151.0,0.00023288,2]
[404100210,1769838640588,-151.0,0.00023288,2]
[404100212,1769838640598,-151.0,0.00023288,2]
[404100214,1769838640607,-163.507759,0.00023288,2]
[404100216,1769838640616,-151.0,0.00023288,2]
[404100218,1769838640627,-206.276086,0.00023288,2]
[404100220,1769838640636,-151.0,0.00023288,2]
[404100222,1769838640647,-151.0,0.00023288,2]
[404100224,1769838640656,-151.0,0.00023288,2]
[404100226,1769838640665,-151.0,0.00023288,2]
[404100228,1769838640674,-151.0,0.00023288,2]
[404100230,1769838640683,-151.0,0.00023288,2]
[404100232,1769838640694,-151.0,0.00023288,2]
[404100234,1769838640703,-157.014632,0.00023288,2]
[404100236,1769838640712,-192.149103,0.00023288,2]
[404100238,1769838640721,-192.149103,0.00023288,2]
[404100240,1769838640730,-192.149103,0.00023288,2]
[404100242,1769838640739,-192.149103,0.00023288,2]
[404100244,1769838640748,-192.149103,0.00023288,2]
[404100246,1769838640757,-192.149103,0.00023288,2]
[404100248,1769838640767,-192.149103,0.00023288,2]
[404100250,1769838640779,-192.149103,0.00023288,2]
[404100252,1769838640788,-192.149103,0.00023288,2]
[404100254,1769838640798,-192.149103,0.00023288,2]
[404100256,1769838640807,-192.149103,0.00023288,2]
[404100258,1769838640816,-192.149103,0.00023288,2]
[404100260,1769838640826,-192.149103,0.00023288,2]
[404100262,1769838640835,-192.149103,0.00023288,2]
[404100264,1769838640844,-192.149103,0.00023288,2]
[404100266,1769838640854,-192.149103,0.00023288,2]
[404100268,1769838640864,-192.149103,0.00023288,2]
[404100270,1769838640873,-192.149103,0.00023288,2]
[404100272,1769838640883,-192.149103,0.00023288,2]
[404100274,1769838640892,-192.149112,0.00023288,2]
[404100276,1769838640902,-298.612995,0.00023288,2]
[404100278,1769838640911,-298.612995,0.00023288,2]
[404100280,1769838640920,-298.612995,0.00023288,2]
[404100282,1769838640930,-298.612995,0.00023288,2]
[404100284,1769838640939,-298.612995,0.00023288,2]
[404100286,1769838640949,-298.612995,0.00023288,2]
[404100288,1769838640958,-298.612995,0.00023288,2]
[404100290,1769838640967,-298.612995,0.00023288,2]
[404100292,1769838640979,-298.612995,0.00023288,2]
[404100294,1769838640989,-298.612995,0.00023288,2]
[404100296,1769838640998,-298.612995,0.00023288,2]
[404100298,1769838641007,-298.612995,0.00023288,2]
[404100300,1769838641016,-298.612995,0.00023288,2]
[404100302,1769838641026,-298.612995,0.00023288,2]
[404100304,1769838641035,-298.612995,0.00023288,2]
[404100306,1769838641044,-298.612995,0.00023288,2]
[404100308,1769838641055,-298.612995,0.00023288,2]
[404100310,1769838641064,-298.612995,0.00023288,2]
[404100312,1769838641074,-298.612995,0.00023288,2]
[404100314,1769838641084,-298.612997,0.00023288,2]
[404100316,1769838641093,-189.989521,0.00023288,2]
[404100318,1769838641102,-189.989521,0.00023288,2]
[404100320,1769838641111,-189.989521,0.00023288,2]
[404100322,1769838641120,-189.989521,0.00023288,2]
[404100324,1769838641129,-189.989521,0.00023288,2]
[404100326,1769838641139,-189.989521,0.00023288,2]
[404100328,1769838641147,-189.989521,0.00023288,2]
[404100330,1769838641157,-189.989521,0.00023288,2]
[404100332,1769838641166,-189.989521,0.00023288,2]
[404100334,1769838641175,-189.989521,0.00023288,2]
[404100336,1769838641184,-189.989521,0.00023288,2]
[404100338,1769838641194,-189.989521,0.00023288,2]
[404100340,1769838641203,-189.989521,0.00023288,2]
[404100342,1769838641212,-189.989521,0.00023288,2]
[404100344,1769838641221,-189.989521,0.00023288,2]
[404100346,1769838641230,-189.989521,0.00023288,2]
[404100348,1769838641239,-189.989521,0.00023288,2]
[404100350,1769838641247,-189.989521,0.00023288,2]
[404100352,1769838641256,-189.989521,0.00023288,2]
[404100354,1769838641265,-189.989528,0.00023288,2]
[404100355,1769838641274,-151.0,0.00023288,2]
[404100356,1769838641283,-151.0,0.00023288,2]
[404100357,1769838641292,-151.0,0.00023288,2]
[404100358,1769838641300,-158.73094,0.00023288,2]
[404100359,1769838641310,-151.0,0.00023288,2]
[404100360,1769838641318,-151.0,0.00023288,2]
[404100361,1769838641327,-151.0,0.00023288,2]
[404100362,1769838641336,-200.300471,0.00023288,2]
[404100363,1769838641345,-171.44103,0.00023288,2]
[404100364,1769838641355,-171.44103,0.00023288,2]
[404100365,1769838641363,-171.44103,0.00023288,2]
[404100366,1769838641372,-171.44103,0.00023288,2]
[404100367,1769838641381,-171.44103,0.00023288,2]
[404100368,1769838641390,-171.44103,0.00023288,2]
[404100369,1769838641399,-171.44103,0.00023288,2]
[404100370,1769838641409,-171.44103,0.00023288,2]
[404100371,1769838641422,-171.44103,0.00023288,2]
[404100372,1769838641434,-171.44103,0.00023288,2]
[404100373,1769838641446,-171.44103,0.00023288,2]
[404100374,1769838641459,-171.44103,0.00023288,2]
[404100375,1769838641470,-171.44103,0.00023288,2]
[404100376,1769838641480,-171.44103,0.00023288,2]
[404100377,1769838641490,-171.44103,0.00023288,2]
[404100378,1769838641502,-171.44103,0.00023288,2]
[404100379,1769838641513,-171.44103,0.00023288,2]
[404100380,1769838641525,-171.44103,0.00023288,2]
[404100381,1769838641536,-171.44103,0.00023288,2]
[404100382,1769838641548,-171.441024,0.00023288,2]
[404100383,1769838641560,-151.0,0.00023288,2]
[404100384,1769838641571,-151.0,0.00023288,2]
[404100385,1769838641583,-151.0,0.00023288,2]
[404100386,1769838641595,-151.0,0.00023288,2]
[404100387,1769838641607,-151.0,0.00023288,2]
[404100388,1769838641619,-151.0,0.00023288,2]
[404100389,1769838641630,-224.257804,0.00023288,2]
[404100390,1769838641642,-256.533306,0.00023288,2]
[404100391,1769838641653,-256.533306,0.00023288,2]
[404100392,1769838641665,-256.533306,0.00023288,2]
[404100393,1769838641676,-256.533306,0.00023288,2]
[404100394,1769838641687,-256.533306,0.00023288,2]
[404100395,1769838641699,-256.533306,0.00023288,2]
[404100396,1769838641711,-256.533306,0.00023288,2]
[404100397,1769838641722,-256.533306,0.00023288,2]
[404100398,1769838641733,-256.533306,0.00023288,2]
[404100399,1769838641744,-256.533306,0.00023288,2]
[404100400,1769838641754,-256.533306,0.00023288,2]
[404100401,1769838641764,-256.533306,0.00023288,2]
[404100402,1769838641774,-256.533306,0.00023288,2]
[404100403,1769838641785,-256.533306,0.00023288,2]
[404100404,1769838641796,-256.533306,0.00023288,2]
[404100405,1769838641806,-256.533306,0.00023288,2]
[404100406,1769838641817,-256.533306,0.00023288,2]
[404100407,1769838641829,-256.533306,0.00023288,2]
[404100408,1769838641840,-256.533306,0.00023288,2]
[404100409,1769838641852,-256.533313,0.00023288,2]
[404100410,1769838641865,-151.0,0.00023288,2]
[404100411,1769838641877,-151.0,0.00023288,2]
[404100412,1769838641889,-151.0,0.00023288,2]
[404100413,1769838641899,-151.0,0.00023288,2]
[404100414,1769838641913,-151.0,0.00023288,2]
[404100415,1769838641923,-151.0,0.00023288,2]
[404100416,1769838641933,-151.0,0.00023288,2]
[404100417,1769838641944,-151.0,0.00023288,2]
[404100418,1769838641953,-151.0,0.00023288,2]
[404100419,1769838641963,-151.0,0.00023288,2]
[404100420,1769838641974,-275.833348,0.00023288,2]
[404100421,1769838641991,-229.49945,0.00023288,2]
[404100422,1769838642003,-229.49945,0.00023288,2]
[404100423,1769838642016,-229.49945,0.00023288,2]
[404100424,1769838642031,-229.49945,0.00023288,2]
[404100425,1769838642042,-229.49945,0.00023288,2]
[404100426,1769838642054,-229.49945,0.00023288,2]
[404100427,1769838642064,-229.49945,0.00023288,2]
[404100428,1769838642075,-229.49945,0.00023288,2]
[404100429,1769838642086,-229.49945,0.00023288,2]
[404100430,1769838642097,-229.49945,0.00023288,2]
[404100431,1769838642109,-229.49945,0.00023288,2]
[404100432,1769838642120,-229.49945,0.00023288,2]
[404100433,1769838642130,-229.49945,0.00023288,2]
[404100434,1769838642140,-229.49945,0.00023288,2]
[404100435,1769838642150,-229.49945,0.00023288,2]
[404100436,1769838642160,-229.49945,0.00023288,2]
[404100437,1769838642171,-229.49945,0.00023288,2]
[404100438,1769838642181,-229.49945,0.00023288,2]
[404100439,1769838642192,-229.49945,0.00023288,2]
[404100440,1769838642202,-229.499455,0.00023288,2]
[404100441,1769838642212,-151.0,0.00023288,2]
[404100442,1769838642222,-151.0,0.00023288,2]
[404100443,1769838642232,-151.0,0.00023288,2]
[404100444,1769838642243,-151.536998,0.00023288,2]
[404100445,1769838642253,-160.694323,0.00023288,2]
[404100446,1769838642264,-160.694323,0.00023288,2]
[404100447,1769838642274,-160.694323,0.00023288,2]
[404100448,1769838642284,-160.694323,0.00023288,2]
[404100450,1769838642294,-160.694323,0.00023288,2]
[404100452,1769838642305,-160.694323,0.00023288,2]
[404100453,1769838642315,-160.694323,0.00023288,2]
[404100454,1769838642325,-160.694323,0.00023288,2]
[404100455,1769838642336,-160.694323,0.00023288,2]
[404100456,1769838642347,-160.694323,0.00023288,2]
[404100457,1769838642357,-160.694323,0.00023288,2]
[404100458,1769838642367,-160.694323,0.00023288,2]
[404100459,1769838642378,-160.694323,0.00023288,2]
[404100460,1769838642388,-160.694323,0.00023288,2]
[404100461,1769838642398,-160.694323,0.00023288,2]
[404100462,1769838642409,-160.694323,0.00023288,2]
[404100463,1769838642419,-160.694323,0.00023288,2]
[404100464,1769838642429,-160.694323,0.00023288,2]
[404100466,1769838642440,-160.694323,0.00023288,2]
[404100468,1769838642450,-160.694326,0.00023288,2]
[404100469,1769838642460,-151.0,0.00023288,2]
[404100471,1769838642470,-151.0,0.00023288,2]
[404100472,1769838642483,-151.0,0.00023288,2]
[404100473,1769838642495,-151.0,0.00023288,2]
[404100474,1769838642505,-151.0,0.00023288,2]
[404100475,1769838642515,-151.0,0.00023288,2]
[404100476,1769838642526,-151.0,0.00023288,2]
[404100477,1769838642536,-151.0,0.00023288,2]
[404100478,1769838642546,-151.0,0.00023288,2]
[404100479,1769838642556,-151.0,0.00023288,2]
[404100480,1769838642568,-2000.0,0.00023311,7]
[404100481,1769838642578,-1000.0,0.00023401,10]
[404100482,1769838642589,-492.0,0.00023401,10]
[404100483,1769838642599,-1000.0,0.000235,2]
[404100484,1769838642610,-30000.0,0.0002356,2]
[404100485,1769838642620,-181.08010149,0.0002356,2]
[404100486,1769838642631,-187.78006525,0.0002356,2]
[404100487,1769838642642,-194.72792766,0.0002356,2]
[404100488,1769838642652,-201.93286099,0.0002356,2]
[404100489,1769838642662,-209.40437684,0.0002356,2]
[404100490,1769838642673,-217.15233878,0.0002356,2]
[404100491,1769838642684,-225.18697532,0.0002356,2]
[404100492,1769838642695,-233.51889341,0.0002356,2]
[404100493,1769838642705,-242.15909246,0.0002356,2]
[404100494,1769838642716,-251.11897888,0.0002356,2]
[404100495,1769838642727,-260.4103811,0.0002356,2]
[404100496,1769838642737,-369.00271481,0.0002356,2]
[404100497,1769838642748,-1773.91857602,0.00023641,2]
[404100498,1769838642883,-3606.93,0.00023749,2]
[404100499,1769838642897,-529.65,0.00023749,2]
[404100500,1769838642907,-151.0,0.00023749,2]
[404100501,1769838642916,-151.0,0.00023749,2]
[404100503,1769838642925,-500.0,0.00023749,2]
[404100504,1769838642934,-500.0,0.00023749,2]
[404100505,1769838642944,-500.0,0.00023749,2]
[404100506,1769838642954,-305.752651,0.00023749,2]
[404100507,1769838642963,-305.752651,0.00023749,2]
[404100508,1769838642972,-305.752651,0.00023749,2]
[404100510,1769838642985,-305.752651,0.00023749,2]
[404100512,1769838642994,-305.752651,0.00023749,2]
[404100514,1769838643003,-305.752651,0.00023749,2]
[404100515,1769838643012,-305.752651,0.00023749,2]
[404100516,1769838643022,-305.752651,0.00023749,2]
[404100517,1769838643032,-305.752651,0.00023749,2]
[404100518,1769838643041,-305.752651,0.00023749,2]
[404100519,1769838643050,-305.752651,0.00023749,2]
[404100520,1769838643060,-305.752651,0.00023749,2]
[404100521,1769838643069,-305.752651,0.00023749,2]
[404100522,1769838643078,-305.752651,0.00023749,2]
[404100523,1769838643088,-305.752651,0.00023749,2]
[404100524,1769838643098,-305.752651,0.00023749,2]
[404100525,1769838643107,-305.752651,0.00023749,2]
[404100526,1769838643117,-305.752651,0.00023749,2]
[404100527,1769838643126,-305.752651,0.00023749,2]
[404100528,1769838643136,-305.752651,0.00023749,2]
[404100529,1769838643146,-305.752651,0.00023749,2]
[404100530,1769838643155,-305.752651,0.00023749,2]
[404100531,1769838643164,-305.752651,0.00023749,2]
[404100532,1769838643174,-305.752651,0.00023749,2]
[404100533,1769838643183,-305.752651,0.00023749,2]
[404100534,1769838643193,-305.752651,0.00023749,2]
[404100535,1769838643202,-305.752651,0.00023749,2]
[404100536,1769838643210,-305.752651,0.00023749,2]
[404100537,1769838643219,-305.752651,0.00023749,2]
[404100538,1769838643228,-305.752651,0.00023749,2]
[404100539,1769838643237,-153.173449,0.00023749,30]
[404100540,1769838643246,-305.752651,0.00023749,2]
[404100541,1769838643256,-305.752651,0.000238,2]
[404100542,1769838643265,-161.2,0.000238,7]
[404100543,1769838643274,-2192.858076,0.000238,30]
[404100544,1769838643283,-5830.42071984,0.000238,2]
[404100545,1769838643292,-207.49143061,0.00023899,2]
[404100546,1769838643301,-1417.22,0.000239,2]
[404100547,1769838643310,-1417.22,0.000239,2]
[404100548,1769838643319,-1417.22,0.000239,2]
[404100549,1769838643328,-1417.22,0.000239,2]
[404100550,1769838643337,-1417.22,0.000239,2]
[404100551,1769838643348,-1417.22,0.000239,2]
[404100552,1769838643358,-1417.22,0.000239,2]
[404100553,1769838643366,-1417.22,0.000239,2]
[404100554,1769838643375,-1417.22,0.000239,2]
[404100555,1769838643384,-1417.22,0.000239,2]
[404100556,1769838643393,-1417.22,0.000239,2]
[404100557,1769838643402,-1417.22,0.000239,2]
[404100558,1769838643411,-1417.22,0.000239,2]
[404100559,1769838643420,-1417.22,0.000239,2]
[404100560,1769838643429,-1417.22,0.000239,2]
[404100561,1769838643438,-1417.22,0.000239,2]
[404100562,1769838643447,-1417.22,0.000239,2]
[404100563,1769838643458,-1417.22,0.000239,2]
[404100564,1769838643468,-1417.22,0.000239,2]
[404100565,1769838643478,-1417.22,0.000239,2]
[404100566,1769838643487,-1417.22,0.000239,2]
[404100567,1769838643496,-1417.22,0.000239,2]
[404100568,1769838643506,-1417.22,0.000239,2]
[404100569,1769838643515,-1417.22,0.000239,2]
[404100570,1769838643524,-1417.22,0.000239,2]
[404100571,1769838643533,-1417.22,0.000239,2]
[404100572,1769838643543,-1417.22,0.000239,2]
[404100573,1769838643553,-1417.22,0.000239,2]
[404100574,1769838643562,-1417.22,0.000239,2]
[404100575,1769838643571,-1417.22,0.000239,2]
[404100576,1769838643581,-1417.22,0.000239,2]
[404100577,1769838643590,-1417.22,0.000239,2]
[404100578,1769838643600,-1417.22,0.000239,2]
[404100579,1769838643611,-1417.22,0.000239,2]
[404100580,1769838643620,-1417.22,0.000239,2]
[404100581,1769838643629,-1417.22,0.000239,2]
[404100582,1769838643640,-1417.22,0.000239,2]
[404100583,1769838643650,-1417.22,0.000239,2]
[404100584,1769838643659,-1417.22,0.000239,2]
[404100585,1769838643668,-1862.7,0.000239,2]
[404100586,1769838643678,-180.35547549,0.0002395,2]
[404100587,1769838643687,-1000.0,0.00024,2]
[404100588,1769838643697,-400.0,0.00024034,3]
[404100589,1769838643706,-770.1,0.0002408,2]
[404100590,1769838643715,-305.752651,0.000241,2]
[404100591,1769838643724,-20652.45669501,0.00024108,2]
[404100592,1769838643733,-217.77,0.00024145,2]
[404100593,1769838643743,-770.1,0.00024168,2]
[404100594,1769838643752,-770.1,0.00024168,2]
[404100595,1769838643761,-911.5934369,0.00024169,2]
[404100596,1769838643770,-26180.9057972,0.00024169,2]
[404100597,1769838643779,-162.2109483,0.00024169,2]
[404100598,1769838643788,-3034.6101799,0.00024169,2]
[404100599,1769838643798,-151.0,0.00024169,2]
[404100600,1769838643807,-151.0,0.00024169,2]
[404100601,1769838643816,-151.0,0.00024169,2]
[404100602,1769838643825,-151.0,0.00024169,2]
[404100603,1769838643835,-529.65,0.00024176,2]
[404100604,1769838643843,-243.38820759,0.00024176,2]
[404100605,1769838643853,-261.07203508,0.00024176,2]
[404100606,1769838643862,-500.0,0.00024176,2]
[404100607,1769838643871,-3606.93,0.00024177,2]
[404100608,1769838643879,-770.1,0.00024179,2]
[404100609,1769838643889,-770.1,0.00024179,2]
[404100610,1769838643898,-770.1,0.00024179,2]
[404100611,1769838643907,-770.1,0.00024179,2]
[404100612,1769838643916,-3606.93,0.0002418,2]
[404100613,1769838643926,-3606.93,0.0002418,2]
[404100614,1769838643935,-3606.93,0.0002418,2]
[404100615,1769838643944,-3606.93,0.0002418,2]
[404100616,1769838643954,-3606.93,0.0002418,2]
[404100617,1769838643963,-3606.93,0.0002418,2]
[404100618,1769838643972,-3606.93,0.0002418,2]
[404100619,1769838643985,-3606.93,0.0002418,2]
[404100620,1769838643994,-3606.93,0.0002418,2]
[404100621,1769838644004,-3606.93,0.0002418,2]
[404100622,1769838644013,-3606.93,0.0002418,2]
[404100623,1769838644025,-3606.93,0.0002418,2]
[404100624,1769838644034,-3606.93,0.0002418,2]
[404100625,1769838644043,-3606.93,0.0002418,2]
[404100626,1769838644052,-3606.93,0.0002418,2]
[404100627,1769838644063,-3606.93,0.0002418,2]
[404100628,1769838644073,-3606.93,0.0002418,2]
[404100629,1769838644082,-3606.93,0.0002418,2]
[404100630,1769838644091,-3606.93,0.0002418,2]
[404100631,1769838644100,-3606.93,0.0002418,2]
[404100632,1769838644109,-3606.93,0.0002418,2]
[404100633,1769838644119,-3607.14989845,0.0002418,2]
[404100634,1769838644128,-151.0,0.0002418,2]
[404100635,1769838644138,-151.0,0.0002418,2]
[404100636,1769838644147,-151.0,0.0002418,2]
[404100637,1769838644156,-151.0,0.0002418,2]
[404100639,1769838644165,-151.0,0.0002418,2]
[404100641,1769838644174,-151.0,0.0002418,2]
[404100643,1769838644183,-151.0,0.0002418,2]
[404100644,1769838644192,-151.0,0.0002418,2]
[404100645,1769838644201,-185.149723,0.0002418,2]
[404100646,1769838644211,-529.65,0.0002418,2]
[404100647,1769838644220,-529.65,0.0002418,2]
[404100648,1769838644229,-529.65,0.0002418,2]
[404100649,1769838644238,-529.65,0.0002418,2]
[404100650,1769838644247,-529.65,0.0002418,2]
[404100651,1769838644256,-529.65,0.0002418,2]
[404100652,1769838644266,-529.65,0.0002418,2]
[404100653,1769838644275,-529.65,0.0002418,2]
[404100654,1769838644284,-529.65,0.0002418,2]
[404100655,1769838644294,-529.65,0.0002418,2]
[404100656,1769838644303,-529.65,0.0002418,2]
[404100657,1769838644312,-529.65,0.0002418,2]
[404100658,1769838644322,-529.65,0.0002418,2]
[404100659,1769838644331,-529.65,0.0002418,2]
[404100660,1769838644340,-529.65,0.0002418,2]
[404100661,1769838644349,-529.65,0.0002418,2]
[404100662,1769838644358,-529.65,0.0002418,2]
[404100663,1769838644368,-529.65,0.0002418,2]
[404100664,1769838644377,-151.0,0.0002418,2]
[404100665,1769838644386,-529.65,0.0002418,2]
[404100666,1769838644395,-529.68699363,0.0002418,2]
[404100667,1769838644404,-770.1,0.0002418,2]
[404100668,1769838644414,-770.1,0.0002418,2]
[404100669,1769838644423,-770.1,0.0002418,2]
[404100670,1769838644432,-592.48083552,0.0002418,2]
[404100672,1769838644441,-151.0,0.00024181,2]
[404100674,1769838644450,-151.0,0.00024181,2]
[404100676,1769838644459,-305.752651,0.000242,2]
[404100678,1769838644468,-163.518372,0.00024201,2]
[404100679,1769838644477,-500.0,0.0002428,2]
[404100680,1769838644486,-1527.56,0.0002428,2]
[404100681,1769838644495,-1072.214136,0.00024288,30]
[404100682,1769838644504,-305.752651,0.000243,2]
[404100683,1769838644513,-676.45,0.000243,14]
[404100684,1769838644522,-247.27884641,0.00024304,7]
[404100685,1769838644531,-500.0,0.00024359,2]
[404100686,1769838644541,-1527.56,0.00024359,2]
[404100687,1769838644550,-770.1,0.00024362,2]
[404100688,1769838644560,-500.0,0.00024363,2]
[404100689,1769838644569,-544.52178477,0.00024363,2]
[404100690,1769838644578,-500.0,0.00024363,2]
[404100691,1769838644588,-500.0,0.00024363,2]
[404100692,1769838644597,-500.0,0.00024363,2]
[404100693,1769838644606,-500.0,0.00024363,2]
[404100694,1769838644615,-1527.56,0.00024363,2]
[404100695,1769838644624,-1527.56,0.00024363,2]
[404100696,1769838644634,-770.1,0.00024363,2]
[404100697,1769838644644,-770.1,0.00024363,2]
[404100698,1769838644654,-150.0,0.00024389,2]
[404100699,1769838644663,-207.49820687,0.00024389,2]
[404100700,1769838644672,-150.0,0.00024389,2]
[404100701,1769838644681,-150.0,0.00024389,2]
[404100702,1769838644691,-150.0,0.00024389,2]
[404100703,1769838644700,-150.0,0.00024389,2]
[404100704,1769838644709,-150.0,0.00024389,2]
[404100705,1769838644718,-150.0,0.00024389,2]
[404100706,1769838644727,-150.0,0.00024389,2]
[404100707,1769838644736,-150.0,0.00024389,2]